[Event "*** Titled Tuesday Blitz"]
[Site "Chess.com"]
[Date "2019.02.05"]
[Round "5"]
[White "Kawhi_Leonard2"]
[Black "PowerThinking2650"]
[Result "0-1"]
[WhiteElo "2232"]
[BlackElo "2259"]
[TimeControl "180+2"]
[EndTime "14:04:53 PST"]
[Termination "PowerThinking2650 won by resignation"]

1. e4 {[%clk 0:03:01.9]} 1... e5 {[%clk 0:03:00.7]} 2. Nf3 {[%clk 0:03:02.9]}
2... Nc6 {[%clk 0:03:02.3]} 3. Bb5 {[%clk 0:03:04.2]} 3... a6 {[%clk 0:03:03.2]}
4. Bxc6 {[%clk 0:03:05.3]} 4... dxc6 {[%clk 0:03:03.6]} 5. O-O {[%clk
0:03:07.2]} 5... f6 {[%clk 0:03:04.5]} 6. d4 {[%clk 0:03:07.6]} 6... exd4 {[%clk
0:03:05.2]} 7. Nxd4 {[%clk 0:03:09.2]} 7... c5 {[%clk 0:03:06.4]} 8. Ne2 {[%clk
0:03:10.5]} 8... Qxd1 {[%clk 0:03:07.2]} 9. Rxd1 {[%clk 0:03:12.4]} 9... Bd7
{[%clk 0:03:08.5]} 10. Nbc3 {[%clk 0:03:12.5]} 10... O-O-O {[%clk 0:03:09.5]}
11. f3 {[%clk 0:03:13.9]} 11... Ne7 {[%clk 0:03:04.3]} 12. Bf4 {[%clk
0:03:14.5]} 12... Be6 {[%clk 0:02:57.2]} 13. Bg3 {[%clk 0:03:13.4]} 13... g5
{[%clk 0:02:56.1]} 14. h4 {[%clk 0:03:07.5]} 14... Bg7 {[%clk 0:02:52.2]} 15.
Kf2 {[%clk 0:03:01.2]} 15... h6 {[%clk 0:02:47.1]} 16. Ke3 {[%clk 0:02:47.1]}
16... f5 {[%clk 0:02:47.6]} 17. hxg5 {[%clk 0:02:39.1]} 17... hxg5 {[%clk
0:02:47.4]} 18. exf5 {[%clk 0:02:38.7]} 18... Nxf5+ {[%clk 0:02:47.8]} 19. Kf2
{[%clk 0:02:39.8]} 19... Nd4 {[%clk 0:02:36.7]} 20. Ne4 {[%clk 0:01:48.1]} 20...
Nxe2 {[%clk 0:02:37.4]} 21. Kxe2 {[%clk 0:01:45.9]} 21... Bxb2 {[%clk
0:02:37.5]} 22. Rab1 {[%clk 0:01:35.7]} 22... Bc4+ {[%clk 0:02:36.4]} 23. Kf2
{[%clk 0:01:17.6]} 23... Bd4+ {[%clk 0:02:35.8]} 24. Rxd4 {[%clk 0:01:02.5]}
24... Rxd4 {[%clk 0:02:35.9]} 25. Nxc5 {[%clk 0:00:51.2]} 25... Rd2+ {[%clk
0:02:23.9]} 26. Kg1 {[%clk 0:00:46.1]} 26... b6 {[%clk 0:02:15.6]} 27. Ne4
{[%clk 0:00:44.6]} 27... Rxc2 {[%clk 0:02:16.7]} 28. Nxg5 {[%clk 0:00:45]} 28...
Re8 {[%clk 0:02:10.4]} 29. Ne4 {[%clk 0:00:34.7]} 29... Bxa2 {[%clk 0:02:02.9]}
30. Re1 {[%clk 0:00:33.6]} 30... Rg8 {[%clk 0:02:03.1]} 31. Kh2 {[%clk
0:00:25.7]} 31... Bd5 {[%clk 0:02:02.3]} 32. Nf6 {[%clk 0:00:25.5]} 32... Rh8+
{[%clk 0:02:01]} 33. Kg1 {[%clk 0:00:26.6]} 33... Bc6 {[%clk 0:01:56]} 34. Re7
{[%clk 0:00:26.8]} 34... Bb7 {[%clk 0:01:50.6]} 35. Be5 {[%clk 0:00:27.6]} 35...
Rd8 {[%clk 0:01:48.8]} 36. Kh2 {[%clk 0:00:13.5]} 36... Bxf3 {[%clk 0:01:43.7]}
0-1

[Event "*** Titled Tuesday Blitz"]
[Site "Chess.com"]
[Date "2019.02.05"]
[Round "5"]
[White "Kirill_Klukin"]
[Black "valeriocarnicelli"]
[Result "1-0"]
[WhiteElo "2633"]
[BlackElo "2443"]
[TimeControl "180+2"]
[EndTime "14:04:54 PST"]
[Termination "Kirill_Klukin won by resignation"]

1. Nf3 {[%clk 0:03:01.9]} 1... Nf6 {[%clk 0:03:00.9]} 2. d4 {[%clk 0:03:02.3]}
2... g6 {[%clk 0:03:02]} 3. c4 {[%clk 0:02:57]} 3... Bg7 {[%clk 0:03:03.9]} 4.
Nc3 {[%clk 0:02:55.2]} 4... d6 {[%clk 0:03:05.2]} 5. Bg5 {[%clk 0:02:53.3]} 5...
O-O {[%clk 0:03:05.2]} 6. e3 {[%clk 0:02:54.6]} 6... Nbd7 {[%clk 0:03:05.7]} 7.
Be2 {[%clk 0:02:55.9]} 7... c5 {[%clk 0:01:58.2]} 8. O-O {[%clk 0:02:55]} 8...
b6 {[%clk 0:01:49.6]} 9. Qc2 {[%clk 0:02:55.3]} 9... Bb7 {[%clk 0:01:48.8]} 10.
Rfd1 {[%clk 0:02:56.3]} 10... Rc8 {[%clk 0:01:47.5]} 11. Rac1 {[%clk 0:02:54.9]}
11... cxd4 {[%clk 0:01:44.4]} 12. Nxd4 {[%clk 0:02:55.5]} 12... Ne5 {[%clk
0:01:43.4]} 13. Qa4 {[%clk 0:02:42.7]} 13... a6 {[%clk 0:01:08.3]} 14. b3 {[%clk
0:02:43.3]} 14... Rc7 {[%clk 0:01:05.7]} 15. Bf4 {[%clk 0:02:43.7]} 15... Nfd7
{[%clk 0:01:03.1]} 16. Nd5 {[%clk 0:02:38.9]} 16... Rc5 {[%clk 0:00:36.7]} 17.
b4 {[%clk 0:02:16.3]} 17... Rxc4 {[%clk 0:00:36.6]} 18. Bxc4 {[%clk 0:02:11.8]}
18... Nxc4 {[%clk 0:00:37.8]} 19. Nc6 {[%clk 0:02:02.1]} 19... Bxc6 {[%clk
0:00:20.6]} 20. Qxc6 {[%clk 0:02:02.2]} 20... b5 {[%clk 0:00:13.1]} 21. Qxa6
{[%clk 0:01:53.5]} 21... e6 {[%clk 0:00:12.3]} 22. Nc3 {[%clk 0:01:49.1]} 22...
Bxc3 {[%clk 0:00:12.8]} 23. Rxc3 {[%clk 0:01:49.3]} 23... e5 {[%clk 0:00:12.4]}
24. Qxb5 {[%clk 0:01:47.9]} 24... Nb2 {[%clk 0:00:10.4]} 25. Rxd6 {[%clk
0:01:48.8]} 25... exf4 {[%clk 0:00:06.6]} 26. Qxd7 {[%clk 0:01:44.2]} 26... Qb8
{[%clk 0:00:05.9]} 27. Rd4 {[%clk 0:01:45]} 27... fxe3 {[%clk 0:00:06.6]} 28.
fxe3 {[%clk 0:01:46]} 28... Qe5 {[%clk 0:00:06.1]} 29. Qd5 {[%clk 0:01:30.5]}
29... Qf6 {[%clk 0:00:06.8]} 30. Qf3 {[%clk 0:01:30.9]} 30... Qb6 {[%clk
0:00:07.5]} 31. h4 {[%clk 0:01:29.8]} 31... Ra8 {[%clk 0:00:06.9]} 32. Qxa8+
{[%clk 0:01:29]} 1-0

[Event "*** Titled Tuesday Blitz"]
[Site "Chess.com"]
[Date "2019.02.05"]
[Round "5"]
[White "Vugar_Manafov"]
[Black "ZeroRealtorFade"]
[Result "0-1"]
[WhiteElo "2362"]
[BlackElo "2256"]
[TimeControl "180+2"]
[EndTime "14:04:59 PST"]
[Termination "ZeroRealtorFade won on time"]

1. Nf3 {[%clk 0:03:01.9]} 1... Nf6 {[%clk 0:03:00.7]} 2. g3 {[%clk 0:03:03.1]}
2... g6 {[%clk 0:03:01.7]} 3. b3 {[%clk 0:03:03.2]} 3... Bg7 {[%clk 0:03:03.6]}
4. Bb2 {[%clk 0:03:04.3]} 4... O-O {[%clk 0:03:05.5]} 5. Bg2 {[%clk 0:03:06]}
5... d5 {[%clk 0:03:05.7]} 6. c4 {[%clk 0:03:06.5]} 6... dxc4 {[%clk 0:03:06.6]}
7. bxc4 {[%clk 0:03:08.4]} 7... Be6 {[%clk 0:03:07.7]} 8. d3 {[%clk 0:03:08]}
8... Nc6 {[%clk 0:03:07]} 9. O-O {[%clk 0:03:08.7]} 9... Rb8 {[%clk 0:03:06.1]}
10. a4 {[%clk 0:03:06.2]} 10... Qd7 {[%clk 0:03:04.1]} 11. Nbd2 {[%clk
0:02:58.8]} 11... Bh3 {[%clk 0:03:03.6]} 12. Rb1 {[%clk 0:02:58.5]} 12... Bxg2
{[%clk 0:03:03.9]} 13. Kxg2 {[%clk 0:02:58.3]} 13... Rfe8 {[%clk 0:02:59.9]} 14.
Ne5 {[%clk 0:02:55.3]} 14... Nxe5 {[%clk 0:03:00.6]} 15. Bxe5 {[%clk 0:02:57.2]}
15... Nh5 {[%clk 0:02:52.2]} 16. Bxg7 {[%clk 0:02:57.8]} 16... Nxg7 {[%clk
0:02:54.1]} 17. Nf3 {[%clk 0:02:54.1]} 17... e5 {[%clk 0:02:53.3]} 18. Qc2
{[%clk 0:02:54.6]} 18... f6 {[%clk 0:02:49.8]} 19. Rb2 {[%clk 0:02:52.4]} 19...
Ne6 {[%clk 0:02:49.6]} 20. Rfb1 {[%clk 0:02:52.6]} 20... Qc6 {[%clk 0:02:49]}
21. Kg1 {[%clk 0:02:46.8]} 21... Nd4 {[%clk 0:02:46.4]} 22. Nxd4 {[%clk
0:02:46.9]} 22... exd4 {[%clk 0:02:48.3]} 23. a5 {[%clk 0:02:47.3]} 23... Re5
{[%clk 0:02:45.7]} 24. Rb5 {[%clk 0:02:46.7]} 24... Rbe8 {[%clk 0:02:39.1]} 25.
Rxe5 {[%clk 0:02:45.2]} 25... Rxe5 {[%clk 0:02:40.9]} 26. Qd2 {[%clk 0:02:43.8]}
26... b6 {[%clk 0:02:30.8]} 27. axb6 {[%clk 0:02:43.2]} 27... cxb6 {[%clk
0:02:31.7]} 28. Ra1 {[%clk 0:02:43.6]} 28... a5 {[%clk 0:02:32.3]} 29. Qa2
{[%clk 0:02:33.8]} 29... Qe6 {[%clk 0:02:30.4]} 30. Kf1 {[%clk 0:02:29]} 30...
Qh3+ {[%clk 0:02:28.7]} 31. Kg1 {[%clk 0:02:28.3]} 31... Rh5 {[%clk 0:02:26.3]}
32. e4 {[%clk 0:02:19.3]} 32... Qxh2+ {[%clk 0:02:23.4]} 33. Kf1 {[%clk
0:02:20.1]} 33... Kg7 {[%clk 0:02:12.8]} 34. Rb1 {[%clk 0:02:11.1]} 34... Qh3+
{[%clk 0:02:06.5]} 35. Ke1 {[%clk 0:00:58.7]} 35... Qg4 {[%clk 0:02:05.9]} 36.
Qc2 {[%clk 0:00:02.4]} 36... Qf3 {[%clk 0:01:57.6]} 0-1

[Event "*** Titled Tuesday Blitz"]
[Site "Chess.com"]
[Date "2019.02.05"]
[Round "5"]
[White "Chess2019Player"]
[Black "Eliwood44"]
[Result "1-0"]
[WhiteElo "2040"]
[BlackElo "2111"]
[TimeControl "180+2"]
[EndTime "14:05:00 PST"]
[Termination "Chess2019Player won by resignation"]

1. e4 {[%clk 0:03:01.9]} 1... e5 {[%clk 0:02:58.2]} 2. Nf3 {[%clk 0:03:03]} 2...
Nc6 {[%clk 0:02:57.2]} 3. Bb5 {[%clk 0:03:04.4]} 3... Nge7 {[%clk 0:02:57.1]} 4.
O-O {[%clk 0:03:02.1]} 4... g6 {[%clk 0:02:56.3]} 5. c3 {[%clk 0:03:02]} 5... a6
{[%clk 0:02:52.1]} 6. Ba4 {[%clk 0:03:02]} 6... Bg7 {[%clk 0:02:53]} 7. d4
{[%clk 0:03:02.4]} 7... exd4 {[%clk 0:02:53.6]} 8. cxd4 {[%clk 0:03:04.3]} 8...
b5 {[%clk 0:02:55.1]} 9. Bb3 {[%clk 0:03:04.2]} 9... d6 {[%clk 0:02:51.9]} 10.
Nc3 {[%clk 0:03:04.6]} 10... Bg4 {[%clk 0:02:46.2]} 11. Bxf7+ {[%clk 0:03:03.8]}
11... Kf8 {[%clk 0:02:44.2]} 12. Bd5 {[%clk 0:02:54.4]} 12... Nxd4 {[%clk
0:02:43.3]} 13. Nxd4 {[%clk 0:02:51.8]} 13... Bxd1 {[%clk 0:02:42.8]} 14. Ne6+
{[%clk 0:02:52.1]} 14... Ke8 {[%clk 0:02:42.5]} 15. Nxd8 {[%clk 0:02:40.2]}
15... Rxd8 {[%clk 0:02:44.4]} 16. Rxd1 {[%clk 0:02:40.3]} 16... Rf8 {[%clk
0:02:39.6]} 17. Be3 {[%clk 0:02:39.8]} 17... b4 {[%clk 0:02:39.8]} 18. Ne2
{[%clk 0:02:28.6]} 18... Bxb2 {[%clk 0:02:39.1]} 19. Rab1 {[%clk 0:02:29.7]}
19... Be5 {[%clk 0:02:36.1]} 20. Rxb4 {[%clk 0:02:29.2]} 20... c6 {[%clk
0:02:37.6]} 21. Bc4 {[%clk 0:02:26.1]} 21... d5 {[%clk 0:02:36.9]} 22. exd5
{[%clk 0:02:24.6]} 22... cxd5 {[%clk 0:02:38.8]} 23. Bxa6 {[%clk 0:02:22.8]}
23... Kf7 {[%clk 0:02:38.2]} 24. Rb7 {[%clk 0:02:18.7]} 24... Ke6 {[%clk
0:02:38.5]} 25. Bg5 {[%clk 0:02:10.6]} 25... Bf6 {[%clk 0:02:30.5]} 26. Bxf6
{[%clk 0:02:09.9]} 26... Rxf6 {[%clk 0:02:31.5]} 27. Nd4+ {[%clk 0:02:10.8]}
27... Kf7 {[%clk 0:02:32.5]} 28. Bb5 {[%clk 0:02:05.4]} 28... Kf8 {[%clk
0:02:28.6]} 29. Rxe7 {[%clk 0:02:03.8]} 29... Kxe7 {[%clk 0:02:28.9]} 30. Nc6+
{[%clk 0:02:05.3]} 30... Rxc6 {[%clk 0:02:30.1]} 31. Bxc6 {[%clk 0:02:07.2]}
31... d4 {[%clk 0:02:29.5]} 32. Kf1 {[%clk 0:02:05.6]} 32... Rd6 {[%clk
0:02:30.5]} 33. Bb5 {[%clk 0:02:05]} 33... Ke6 {[%clk 0:02:31.5]} 34. Bc4+
{[%clk 0:02:05.7]} 34... Ke5 {[%clk 0:02:32.6]} 35. Ke2 {[%clk 0:02:06.4]} 35...
Rb6 {[%clk 0:02:32]} 36. Bb3 {[%clk 0:02:06.4]} 36... h5 {[%clk 0:02:30.9]} 37.
Rd3 {[%clk 0:02:05.3]} 37... Rc6 {[%clk 0:02:31.9]} 38. g3 {[%clk 0:02:04.2]}
38... Rc1 {[%clk 0:02:31.9]} 39. f4+ {[%clk 0:01:59]} 39... Ke4 {[%clk
0:02:32.2]} 40. Ba4 {[%clk 0:01:54.6]} 40... Rc4 {[%clk 0:02:24.2]} 41. Be8
{[%clk 0:01:39.8]} 41... Rc2+ {[%clk 0:02:24.5]} 42. Rd2 {[%clk 0:01:40.8]}
42... d3+ {[%clk 0:02:26]} 43. Kd1 {[%clk 0:01:39.4]} 43... Rc3 {[%clk
0:02:27.1]} 44. Bxg6+ {[%clk 0:01:38.9]} 44... Ke3 {[%clk 0:02:28.6]} 45. Bxh5
{[%clk 0:01:38]} 45... Rc6 {[%clk 0:02:15.8]} 46. a4 {[%clk 0:01:24.6]} 46...
Rb6 {[%clk 0:02:09.8]} 47. Ke1 {[%clk 0:01:16.4]} 47... Rb1+ {[%clk 0:02:08]}
48. Bd1 {[%clk 0:01:17.1]} 48... Rb8 {[%clk 0:02:05.4]} 49. Ra2 {[%clk
0:01:07.7]} 49... Rd8 {[%clk 0:02:03.9]} 50. a5 {[%clk 0:01:05.6]} 50... d2+
{[%clk 0:02:05.3]} 51. Kf1 {[%clk 0:01:06.7]} 51... Rc8 {[%clk 0:02:02.2]} 52.
Ra3+ {[%clk 0:01:07.1]} 52... Ke4 {[%clk 0:01:59.9]} 53. Ke2 {[%clk 0:01:07.8]}
1-0

[Event "*** Titled Tuesday Blitz"]
[Site "Chess.com"]
[Date "2019.02.05"]
[Round "5"]
[White "AryanTari"]
[Black "Alopekos"]
[Result "1-0"]
[WhiteElo "2816"]
[BlackElo "2491"]
[TimeControl "180+2"]
[EndTime "14:05:04 PST"]
[Termination "AryanTari won on time"]

1. e4 {[%clk 0:03:01.9]} 1... e5 {[%clk 0:03:00.4]} 2. Nf3 {[%clk 0:03:02.6]}
2... Nc6 {[%clk 0:03:01.9]} 3. Nc3 {[%clk 0:03:03.9]} 3... Nf6 {[%clk
0:03:00.9]} 4. a3 {[%clk 0:03:05]} 4... d5 {[%clk 0:02:17.5]} 5. Bb5 {[%clk
0:03:04]} 5... Nxe4 {[%clk 0:01:59.8]} 6. Qe2 {[%clk 0:02:54.4]} 6... Nxc3
{[%clk 0:01:42.3]} 7. Qxe5+ {[%clk 0:02:47.7]} 7... Qe7 {[%clk 0:01:32.1]} 8.
dxc3 {[%clk 0:02:48.1]} 8... Bd7 {[%clk 0:01:28.8]} 9. Qxe7+ {[%clk 0:02:34.7]}
9... Bxe7 {[%clk 0:01:30.7]} 10. Bf4 {[%clk 0:02:33.7]} 10... O-O-O {[%clk
0:01:30.8]} 11. O-O-O {[%clk 0:02:34.7]} 11... a6 {[%clk 0:01:25.4]} 12. Bxc6
{[%clk 0:02:30]} 12... Bxc6 {[%clk 0:01:27.3]} 13. Rhe1 {[%clk 0:02:30.8]} 13...
Rhe8 {[%clk 0:01:25]} 14. Ne5 {[%clk 0:02:30.4]} 14... Bd6 {[%clk 0:01:23.8]}
15. Nd3 {[%clk 0:02:30.5]} 15... Bb5 {[%clk 0:00:31.9]} 16. Rxe8 {[%clk
0:02:27.4]} 16... Bxe8 {[%clk 0:00:31.4]} 17. g3 {[%clk 0:02:12.7]} 17... Bb5
{[%clk 0:00:29.4]} 18. Bxd6 {[%clk 0:02:09.3]} 18... Rxd6 {[%clk 0:00:22.2]} 19.
Nf4 {[%clk 0:02:09.4]} 19... Bc6 {[%clk 0:00:22]} 20. h4 {[%clk 0:02:02.5]}
20... Kd7 {[%clk 0:00:19.6]} 21. Kd2 {[%clk 0:02:02.8]} 21... d4 {[%clk
0:00:16.7]} 22. c4 {[%clk 0:02:01.4]} 22... Bf3 {[%clk 0:00:17.5]} 23. Re1
{[%clk 0:02:02]} 23... c5 {[%clk 0:00:18.5]} 24. Nd3 {[%clk 0:02:03]} 24... f6
{[%clk 0:00:11.4]} 25. Nxc5+ {[%clk 0:02:03.9]} 25... Kc6 {[%clk 0:00:12.9]} 26.
Nd3 {[%clk 0:02:04.7]} 26... Rd7 {[%clk 0:00:10.8]} 27. Re6+ {[%clk 0:02:05.4]}
27... Kc7 {[%clk 0:00:11.9]} 28. Nc5 {[%clk 0:02:05.9]} 28... Rf7 {[%clk
0:00:09.8]} 29. b4 {[%clk 0:02:03.3]} 29... f5 {[%clk 0:00:07.4]} 30. a4 {[%clk
0:01:58.5]} 30... f4 {[%clk 0:00:05.5]} 31. a5 {[%clk 0:01:59.6]} 31... Bg4
{[%clk 0:00:04.1]} 32. Re4 {[%clk 0:01:51.6]} 32... fxg3 {[%clk 0:00:04.9]} 33.
fxg3 {[%clk 0:01:53.1]} 33... Bf3 {[%clk 0:00:02.4]} 34. Rxd4 {[%clk 0:01:53.4]}
34... Re7 {[%clk 0:00:03.8]} 35. Rd3 {[%clk 0:01:49.5]} 35... Bc6 {[%clk
0:00:04.5]} 36. Re3 {[%clk 0:01:50.4]} 36... Rf7 {[%clk 0:00:05]} 37. Ne6+
{[%clk 0:01:51.6]} 37... Kd6 {[%clk 0:00:05.1]} 38. Nd4 {[%clk 0:01:52.6]} 38...
Bd7 {[%clk 0:00:05]} 39. Nf3 {[%clk 0:01:53.5]} 1-0

[Event "*** Titled Tuesday Blitz"]
[Site "Chess.com"]
[Date "2019.02.05"]
[Round "5"]
[White "Perecke"]
[Black "gemarin"]
[Result "0-1"]
[WhiteElo "2041"]
[BlackElo "2096"]
[TimeControl "180+2"]
[EndTime "14:05:20 PST"]
[Termination "gemarin won on time"]

1. e4 {[%clk 0:02:42.3]} 1... c5 {[%clk 0:02:59.1]} 2. Nf3 {[%clk 0:02:43.2]}
2... Nc6 {[%clk 0:02:59.3]} 3. Nc3 {[%clk 0:02:43.7]} 3... a6 {[%clk 0:02:57.7]}
4. a4 {[%clk 0:02:42.8]} 4... d6 {[%clk 0:02:57]} 5. d4 {[%clk 0:02:42.9]} 5...
cxd4 {[%clk 0:02:57.3]} 6. Nxd4 {[%clk 0:02:44.8]} 6... Nf6 {[%clk 0:02:57.5]}
7. Be2 {[%clk 0:02:38]} 7... e6 {[%clk 0:02:43.7]} 8. Be3 {[%clk 0:02:36]} 8...
Bd7 {[%clk 0:02:37.6]} 9. O-O {[%clk 0:02:25.7]} 9... Be7 {[%clk 0:02:31.4]} 10.
f4 {[%clk 0:02:05.7]} 10... O-O {[%clk 0:02:30.5]} 11. Bf3 {[%clk 0:02:02.8]}
11... Rc8 {[%clk 0:02:30.4]} 12. Qe2 {[%clk 0:01:45.5]} 12... Qc7 {[%clk
0:02:17.8]} 13. g4 {[%clk 0:01:23.5]} 13... Nxd4 {[%clk 0:02:02.5]} 14. Bxd4
{[%clk 0:01:16.8]} 14... Qc4 {[%clk 0:02:02.6]} 15. Qf2 {[%clk 0:01:06.4]} 15...
e5 {[%clk 0:02:02.4]} 16. fxe5 {[%clk 0:01:01.2]} 16... Nxg4 {[%clk 0:02:01]}
17. Bxg4 {[%clk 0:01:01.6]} 17... Bxg4 {[%clk 0:02:00.7]} 18. exd6 {[%clk
0:01:02.5]} 18... Bxd6 {[%clk 0:02:01.1]} 19. Nd5 {[%clk 0:00:59]} 19... Bh3
{[%clk 0:01:58]} 20. Rfd1 {[%clk 0:00:42.2]} 20... Qxc2 {[%clk 0:01:57.1]} 21.
Rd2 {[%clk 0:00:27.3]} 21... Qxe4 {[%clk 0:01:54.9]} 22. Qf6 {[%clk 0:00:07.1]}
22... Qg4+ {[%clk 0:01:39.2]} 23. Kh1 {[%clk 0:00:06.7]} 23... Bb4 {[%clk
0:00:58.2]} 24. Rf2 {[%clk 0:00:02.6]} 24... Rc6 {[%clk 0:00:57.3]} 25. Qe5
{[%clk 0:00:02.4]} 25... Bd6 {[%clk 0:00:51.9]} 26. Nf6+ {[%clk 0:00:02.3]}
26... gxf6 {[%clk 0:00:51.1]} 27. Qxf6 {[%clk 0:00:03.1]} 27... Be5 {[%clk
0:00:45.6]} 0-1

[Event "*** Titled Tuesday Blitz"]
[Site "Chess.com"]
[Date "2019.02.05"]
[Round "5"]
[White "StoreySniper"]
[Black "Manukyan_Artak"]
[Result "0-1"]
[WhiteElo "2335"]
[BlackElo "2359"]
[TimeControl "180+2"]
[EndTime "14:05:25 PST"]
[Termination "Manukyan_Artak won by checkmate"]

1. d4 {[%clk 0:03:01.9]} 1... Nf6 {[%clk 0:03:00.1]} 2. c4 {[%clk 0:03:02.3]}
2... g6 {[%clk 0:03:01.5]} 3. Nc3 {[%clk 0:03:03.2]} 3... Bg7 {[%clk 0:03:02.9]}
4. e4 {[%clk 0:03:03.7]} 4... d6 {[%clk 0:03:04.5]} 5. Be2 {[%clk 0:03:04.3]}
5... O-O {[%clk 0:03:06.4]} 6. h4 {[%clk 0:03:05.2]} 6... h5 {[%clk 0:03:03.9]}
7. Bg5 {[%clk 0:02:42.8]} 7... Nh7 {[%clk 0:02:58.1]} 8. Be3 {[%clk 0:02:41.5]}
8... e5 {[%clk 0:02:56.9]} 9. d5 {[%clk 0:02:38.5]} 9... c5 {[%clk 0:02:57.1]}
10. Qd2 {[%clk 0:02:27]} 10... Na6 {[%clk 0:02:43.3]} 11. a3 {[%clk 0:02:26.1]}
11... Nc7 {[%clk 0:02:42.2]} 12. b4 {[%clk 0:02:22.2]} 12... b6 {[%clk
0:02:42.2]} 13. bxc5 {[%clk 0:02:11.2]} 13... bxc5 {[%clk 0:02:42.7]} 14. Nf3
{[%clk 0:02:11.2]} 14... Bd7 {[%clk 0:02:30.5]} 15. Ng5 {[%clk 0:02:05.5]} 15...
Nf6 {[%clk 0:02:29]} 16. f3 {[%clk 0:02:03.4]} 16... Rb8 {[%clk 0:02:28.2]} 17.
O-O {[%clk 0:02:02.5]} 17... Nh7 {[%clk 0:02:23.9]} 18. g3 {[%clk 0:01:52.4]}
18... Bf6 {[%clk 0:02:23.9]} 19. Nxh7 {[%clk 0:01:50.5]} 19... Kxh7 {[%clk
0:02:24.9]} 20. Rfb1 {[%clk 0:01:48.9]} 20... Qe7 {[%clk 0:02:06]} 21. a4 {[%clk
0:01:46.9]} 21... Na6 {[%clk 0:02:02.1]} 22. Nb5 {[%clk 0:01:43.2]} 22... Bxb5
{[%clk 0:01:56.1]} 23. axb5 {[%clk 0:01:43.5]} 23... Nb4 {[%clk 0:01:58]} 24.
Rxb4 {[%clk 0:01:42.8]} 24... cxb4 {[%clk 0:01:58.9]} 25. Rxa7 {[%clk
0:01:43.8]} 25... Rb7 {[%clk 0:01:59.9]} 26. Rxb7 {[%clk 0:01:43.7]} 26... Qxb7
{[%clk 0:02:01.8]} 27. Qxb4 {[%clk 0:01:44.6]} 27... Ra8 {[%clk 0:01:58.5]} 28.
Qxd6 {[%clk 0:01:41.9]} 28... Kg7 {[%clk 0:01:54.7]} 29. c5 {[%clk 0:01:17.5]}
29... Ra2 {[%clk 0:01:41.6]} 30. c6 {[%clk 0:00:57.6]} 30... Qa8 {[%clk
0:01:25.7]} 31. Bf1 {[%clk 0:00:42]} 31... Qa5 {[%clk 0:01:18.6]} 32. c7 {[%clk
0:00:23.1]} 32... Qe1 {[%clk 0:01:17.7]} 33. Qxf6+ {[%clk 0:00:03.1]} 33... Kxf6
{[%clk 0:01:16.8]} 34. Bg5+ {[%clk 0:00:02]} 34... Kg7 {[%clk 0:01:17.8]} 35.
c8=Q {[%clk 0:00:02.8]} 35... Qxg3+ {[%clk 0:01:16.8]} 36. Kh1 {[%clk
0:00:03.5]} 36... Qh2# {[%clk 0:01:17.8]} 0-1

[Event "*** Titled Tuesday Blitz"]
[Site "Chess.com"]
[Date "2019.02.05"]
[Round "5"]
[White "Jenia84"]
[Black "NoGalloNoParty"]
[Result "1-0"]
[WhiteElo "2213"]
[BlackElo "2324"]
[TimeControl "180+2"]
[EndTime "14:05:32 PST"]
[Termination "Jenia84 won by checkmate"]

1. Nf3 {[%clk 0:03:01.9]} 1... Nf6 {[%clk 0:03:00.5]} 2. e3 {[%clk 0:03:02.3]}
2... d5 {[%clk 0:02:55.4]} 3. c4 {[%clk 0:02:57.8]} 3... c6 {[%clk 0:02:56]} 4.
Nc3 {[%clk 0:02:54.5]} 4... Bg4 {[%clk 0:02:56.5]} 5. Be2 {[%clk 0:02:48.2]}
5... e6 {[%clk 0:02:55.3]} 6. Ne5 {[%clk 0:02:18.8]} 6... Bxe2 {[%clk
0:02:55.3]} 7. Qxe2 {[%clk 0:02:19.3]} 7... Nbd7 {[%clk 0:02:54.2]} 8. Nxd7
{[%clk 0:02:17.5]} 8... Qxd7 {[%clk 0:02:54.2]} 9. b3 {[%clk 0:02:18.1]} 9...
Bd6 {[%clk 0:02:27.5]} 10. Bb2 {[%clk 0:02:18.2]} 10... O-O {[%clk 0:02:28.2]}
11. O-O {[%clk 0:02:16.4]} 11... Rfe8 {[%clk 0:02:26.4]} 12. f4 {[%clk
0:02:16.6]} 12... Rad8 {[%clk 0:02:20.2]} 13. Nd1 {[%clk 0:02:16.5]} 13... Be7
{[%clk 0:02:16.5]} 14. cxd5 {[%clk 0:02:11.7]} 14... Qxd5 {[%clk 0:02:10.1]} 15.
d4 {[%clk 0:02:11.2]} 15... Ne4 {[%clk 0:02:09.7]} 16. Nf2 {[%clk 0:02:10.6]}
16... Bf6 {[%clk 0:02:06.8]} 17. Ng4 {[%clk 0:02:09.2]} 17... Be7 {[%clk
0:02:06.3]} 18. Rac1 {[%clk 0:02:04.5]} 18... Bf8 {[%clk 0:01:56]} 19. Ne5
{[%clk 0:01:57.3]} 19... c5 {[%clk 0:01:45.9]} 20. Rfd1 {[%clk 0:01:48.1]} 20...
cxd4 {[%clk 0:00:46]} 21. Bxd4 {[%clk 0:01:39]} 21... Qa5 {[%clk 0:00:41.6]} 22.
a4 {[%clk 0:01:22.8]} 22... Rc8 {[%clk 0:00:31.9]} 23. Rxc8 {[%clk 0:01:17.3]}
23... Rxc8 {[%clk 0:00:32.5]} 24. Qf3 {[%clk 0:01:13.5]} 24... Nf6 {[%clk
0:00:33.2]} 25. Qxb7 {[%clk 0:01:12]} 25... Rc7 {[%clk 0:00:29.8]} 26. Qb8
{[%clk 0:01:06.8]} 26... Nd7 {[%clk 0:00:28.3]} 27. Qd8 {[%clk 0:00:52.7]} 27...
Rc5 {[%clk 0:00:13.7]} 28. Qxa5 {[%clk 0:00:51.1]} 28... Rxa5 {[%clk 0:00:13.8]}
29. Nxd7 {[%clk 0:00:51.5]} 29... Rd5 {[%clk 0:00:14.5]} 30. Nxf8 {[%clk
0:00:50.1]} 30... Kxf8 {[%clk 0:00:15.9]} 31. e4 {[%clk 0:00:50.3]} 31... Rd8
{[%clk 0:00:14.1]} 32. Bxg7+ {[%clk 0:00:49.8]} 32... Ke7 {[%clk 0:00:14.3]} 33.
Bf6+ {[%clk 0:00:50.1]} 33... Ke8 {[%clk 0:00:15.5]} 34. Rxd8# {[%clk
0:00:50.2]} 1-0